bitfinex-derivatives/quotes_ETHF0:USTF0_20251226
["timestamp","ask_amount","ask_price","bid_price","bid_amount"]
[1766739753678,7.34066,2966.5,2965.1,0.00800402]
[1766739753880,0.88373484,2966.4,2965.1,0.00800402]
[1766739754080,7.34066,2966.5,2965.1,0.00800402]
[1766739754277,0.88373484,2966.4,2965.1,0.00800402]
[1766739754486,7.34066,2966.5,2965.1,0.00800402]
[1766739754688,0.88379072,2966.4,2965.1,0.00800402]
[1766739754890,7.34066,2966.5,2965.1,0.00800402]
[1766739755089,0.8837903,2966.4,2965.1,0.00800402]
[1766739755388,7.34066,2966.5,2965.1,0.00800402]
[1766739755587,0.88386117,2966.4,2965.1,0.00800402]
[1766739755787,7.34066,2966.5,2965.1,0.00800402]
[1766739755987,0.88386115,2966.4,2965.1,0.00800402]
[1766739756189,7.34066,2966.5,2965.1,0.00800402]
[1766739756488,0.88386115,2966.4,2965.1,0.00800402]
[1766739756687,7.34066,2966.5,2965.1,0.00800402]
[1766739756888,0.88394647,2966.4,2965.1,0.00800402]
[1766739757088,7.34066,2966.5,2965.1,0.00800402]
[1766739757280,0.88394647,2966.4,2965.1,0.00800402]
[1766739757483,7.34066,2966.5,2965.1,0.00800402]
[1766739757683,8.20204752,2966.4,2965.1,0.00800402]
[1766739757884,7.318,2966.4,2965.1,0.00800402]
[1766739758295,0.16866,2966.5,2965.1,0.00800402]
[1766739758494,0.88415828,2966.4,2965.1,0.00800402]
[1766739758795,0.00248827,2966.9,2965.1,0.00800402]
[1766739758992,8.21208279,2966.8,2965.1,0.00800402]
[1766739759295,7.328,2966.8,2965.1,0.00800402]
[1766739760589,0.79481857,2966.5,2965.1,0.00800402]
[1766739761783,0.16866,2966.6,2965.1,0.00800402]
[1766739762281,0.88518036,2966.5,2965.1,0.00800402]
[1766739762486,0.16866,2966.6,2965.1,0.00800402]
[1766739762688,0.8851777,2966.5,2965.1,0.00800402]
[1766739762998,0.16866,2966.6,2965.1,0.00800402]
[1766739763192,0.8851777,2966.5,2965.1,0.00800402]
[1766739763392,0.16866,2966.6,2965.1,0.00800402]
[1766739763593,0.88543718,2966.5,2965.1,0.00800402]
[1766739763794,0.16866,2966.6,2965.1,0.00800402]
[1766739764000,0.88543718,2966.5,2965.1,0.00800402]
[1766739764190,0.16866,2966.6,2965.1,0.00800402]
[1766739764390,0.88543718,2966.5,2965.1,0.00800402]
[1766739764701,0.16866,2966.6,2965.1,0.00800402]
[1766739764890,0.88540772,2966.5,2965.1,0.00800402]
[1766739765091,0.16866,2966.6,2965.1,0.00800402]
[1766739765399,0.88540772,2966.5,2965.1,0.00800402]
[1766739765597,0.16866,2966.6,2965.1,0.00800402]
[1766739765788,0.88537462,2966.5,2965.1,0.00800402]
[1766739765988,0.16866,2966.6,2965.1,0.00800402]
[1766739766189,0.88537462,2966.5,2965.1,0.00800402]
[1766739766389,0.16866,2966.6,2965.1,0.00800402]
[1766739766599,8.2523802,2966.5,2965.1,0.00800402]
[1766739766798,7.367,2966.5,2965.1,0.00800402]
[1766739767004,0.16866,2966.6,2965.1,0.00800402]
[1766739767187,8.25538658,2966.5,2965.1,0.00800402]
[1766739767392,8.16481857,2966.5,2965.1,0.00800402]
[1766739767804,7.37,2966.5,2965.1,0.00800402]
[1766739769199,0.16866,2966.6,2965.1,0.00800402]
[1766739769406,8.27444442,2966.5,2965.1,0.00800402]
[1766739769604,7.389,2966.5,2965.1,0.00800402]
[1766739769904,0.7945702,2966.4,2965.1,0.00800402]
[1766739770204,7.394,2966.3,2965.1,0.00800402]
[1766739770403,7.397,2966.2,2965.2,0.7945702]
[1766739772907,0.9632302,2966.6,2965.2,0.7945702]
[1766739773207,7.396,2966.5,2965.2,0.7945702]
[1766739773803,0.9632302,2966.6,2965.2,0.7945702]
[1766739774004,7.395,2966.5,2965.2,0.7945702]
[1766739775003,0.9632302,2966.6,2965.2,0.7945702]
[1766739775202,7.393,2966.5,2965.2,0.7945702]
[1766739775401,0.00248827,2966.9,2965.5,0.7945702]
[1766739775601,8.27827567,2966.8,2965.5,0.7945702]
[1766739775797,0.88527567,2966.7,2965.5,0.7945702]
[1766739776106,8.1875702,2966.8,2965.2,0.7945702]
[1766739776407,0.88523783,2966.7,2965.2,0.7945702]
[1766739776707,8.1875702,2966.8,2965.2,0.7945702]
[1766739777005,0.7945702,2966.5,2965.1,1.50421125]
[1766739778209,8.1875702,2966.8,2965.1,1.50421125]
[1766739778399,0.88517079,2966.7,2965.1,1.50421125]
[1766739778598,8.1875702,2966.8,2965.1,1.50421125]
[1766739778804,0.88515412,2966.7,2965.1,1.50421125]
[1766739779094,8.1875702,2966.8,2965.1,1.50421125]
[1766739779297,0.88515412,2966.7,2965.1,1.50421125]
[1766739779501,0.7945702,2966.7,2965.1,1.50421125]
[1766739780606,7.386,2966.6,2965.6,0.7945702]
[1766739781503,7.386,2966.8,2965.6,0.7945702]
[1766739781904,7.386,2966.8,2965.5,0.7945702]
[1766739782111,7.385,2966.8,2965.2,0.7945702]
[1766739782312,0.7945702,2966.7,2965.2,0.7945702]
[1766739789814,0.7945702,2966.7,2965.1,1.50421125]
[1766739790016,0.7945702,2966.7,2965.4,0.7945702]
[1766739791416,0.96569847,2966.9,2965.4,0.7945702]
[1766739794820,0.17112827,2966.9,2965.4,0.7945702]
[1766739795617,0.00248827,2966.9,2965.7,0.7945702]
[1766739796911,0.79705847,2966.9,2965.4,0.7945702]
[1766739797113,0.79705847,2966.9,2965.2,0.16874]
[1766739797114,0.7945702,2966.6,2965.2,0.9633102]
[1766739797319,0.7945702,2966.3,2965.1,1.50421125]
[1766739797519,0.7945702,2966.6,2965.1,2.29878145]
[1766739799728,0.96569847,2966.9,2965.4,0.7945702]
[1766739801424,0.17112827,2966.9,2965.7,0.7945702]
[1766739802521,0.17112827,2966.9,2965.5,0.7945702]
[1766739802925,0.96569847,2966.9,2965.5,0.7945702]
[1766739803127,0.96569847,2966.9,2965.1,2.46752145]
[1766739805229,0.7945702,2966.6,2965.1,2.46752145]
[1766739805931,0.7945702,2966.3,2965.1,1.50421125]
[1766739806622,0.9632302,2966.6,2965.1,1.50421125]
[1766739806829,0.9632302,2966.6,2965.1,2.29878145]
[1766739808324,0.16866,2966.6,2965.1,2.29878145]
[1766739809023,0.16866,2966.6,2965.4,0.7945702]
[1766739809931,0.9632302,2966.6,2965.1,2.29878145]
[1766739812231,0.9632302,2966.6,2965.1,7.08878145]
[1766739812533,0.00248827,2966.9,2965.4,0.7945702]
[1766739814520,0.7945702,2966.7,2965.1,6.29421125]
[1766739814826,0.7945702,2966.4,2965.1,6.29421125]
[1766739815025,0.7945702,2966.4,2965.1,4.79800402]
[1766739816027,0.7945702,2966.1,2965.1,4.79800402]
[1766739817233,0.7945702,2966.4,2965.1,4.79800402]
[1766739819727,0.16866,2966.6,2965.1,5.59257422]
[1766739819929,0.00248827,2966.9,2965.4,0.7945702]
[1766739821634,0.7945702,2966.8,2965.2,0.7945702]
[1766739823334,0.7945702,2966.8,2965.5,0.7945702]
[1766739823835,0.7945702,2966.8,2965.2,0.7945702]
[1766739824036,0.7945702,2966.8,2965.3,0.7945702]
[1766739824238,0.7945702,2966.8,2965.1,5.76131422]
[1766739825032,0.7945702,2966.8,2965.4,0.7945702]
[1766739825842,0.00248827,2966.9,2965.7,0.7945702]
[1766739827643,0.7945702,2966.8,2965.4,0.7945702]
[1766739827942,0.7945702,2966.8,2965.1,5.76131422]
[1766739829936,0.00248827,2966.9,2965.1,4.96674402]
[1766739834955,0.16865,2966.7,2965.1,4.79800402]
[1766739835160,0.88721424,2966.6,2965.1,4.79800402]
[1766739835457,0.16865,2966.7,2965.1,4.79800402]
[1766739835756,0.88713925,2966.6,2965.1,4.79800402]
[1766739835944,0.16865,2966.7,2965.1,4.79800402]
[1766739836149,0.88713961,2966.6,2965.1,4.79800402]
[1766739836350,0.16866,2966.6,2965.1,4.79800402]
[1766739845855,0.16866,2966.6,2965.1,0.00800402]
[1766739847565,0.00248827,2966.9,2965.1,0.00800402]
[1766739847764,0.89144031,2966.8,2965.1,0.00800402]
[1766739847965,0.89144031,2966.7,2965.1,0.00800402]
[1766739848161,0.00248827,2966.9,2965.1,0.00800402]
[1766739848466,0.8914163,2966.8,2965.1,0.00800402]
[1766739848665,0.00248827,2966.9,2965.1,0.00800402]
[1766739848869,0.89140215,2966.8,2965.1,0.00800402]
[1766739849164,0.00248827,2966.9,2965.1,0.00800402]
[1766739849368,0.89140743,2966.8,2965.1,0.00800402]
[1766739849567,0.00248827,2966.9,2965.1,0.00800402]
[1766739849766,0.89140787,2966.8,2965.1,0.00800402]
[1766739849968,0.00248827,2966.9,2965.1,0.00800402]
[1766739850169,0.89140709,2966.8,2965.1,0.00800402]
[1766739850467,0.00248827,2966.9,2965.1,0.00800402]
[1766739850665,0.89140586,2966.8,2965.1,0.00800402]
[1766739850863,0.00248827,2966.9,2965.1,0.00800402]
[1766739851062,0.8914005,2966.8,2965.1,0.00800402]
[1766739851260,0.00248827,2966.9,2965.1,0.00800402]
[1766739856468,0.00248827,2966.9,2965.2,0.79439667]
[1766739857478,0.00248827,2966.9,2965.2,0.96312667]
[1766739859880,0.00248827,2966.9,2965.2,2.4511886]
[1766739863874,0.00248827,2966.9,2965.2,1.65679193]
[1766739864068,0.00248827,2966.9,2965.2,1.48806193]
[1766739864277,0.89169021,2966.8,2965.2,1.48806193]
[1766739864473,0.89176377,2966.7,2965.2,1.48806193]
[1766739864673,0.89176377,2966.6,2965.2,1.48806193]
[1766739864876,0.96552494,2966.9,2965.2,1.48806193]
[1766739865177,0.79439667,2966.5,2965.1,0.00800402]
[1766739865381,0.89177563,2966.4,2965.1,0.00800402]
[1766739865583,0.96305667,2966.5,2965.1,0.00800402]
[1766739865775,0.89167246,2966.4,2965.1,0.00800402]
[1766739865976,0.89167246,2966.3,2965.1,0.00800402]
[1766739866269,0.16866,2966.5,2965.1,0.00800402]
[1766739866469,0.89144527,2966.4,2965.1,0.00800402]
[1766739866792,0.89144527,2966.3,2965.1,0.00800402]
[1766739867083,0.16866,2966.5,2965.1,0.00800402]
[1766739867282,0.8912529,2966.4,2965.1,0.00800402]
[1766739867581,0.8912529,2966.3,2965.1,0.00800402]
[1766739867773,0.16866,2966.5,2965.1,0.00800402]
[1766739867968,0.89125248,2966.4,2965.1,0.00800402]
[1766739868172,0.16866,2966.5,2965.1,0.00800402]
[1766739868380,0.8910842,2966.4,2965.1,0.00800402]
[1766739868586,0.16866,2966.5,2965.1,0.00800402]
[1766739868775,0.8910842,2966.4,2965.1,0.00800402]
[1766739868975,0.16866,2966.5,2965.1,0.00800402]
[1766739869172,0.89108418,2966.4,2965.1,0.00800402]
[1766739869376,0.16866,2966.5,2965.1,0.00800402]
[1766739869573,0.89092472,2966.4,2965.1,0.00800402]
[1766739869773,0.16866,2966.5,2965.1,0.00800402]
[1766739870075,0.89092471,2966.4,2965.1,0.00800402]
[1766739870273,0.16866,2966.5,2965.1,0.00800402]
[1766739870487,0.89083498,2966.4,2965.1,0.00800402]
[1766739870682,0.16866,2966.5,2965.1,0.00800402]
[1766739870890,0.89083498,2966.4,2965.1,0.00800402]
[1766739871081,0.16866,2966.5,2965.1,0.00800402]
[1766739871280,0.89076108,2966.4,2965.1,0.00800402]
[1766739871481,7.299,2966.4,2965.1,0.00800402]
[1766739872087,0.16866,2966.5,2965.1,0.00800402]
[1766739876788,7.46866,2966.5,2965.1,0.00800402]
[1766739885798,0.16867,2966.4,2965.1,0.00800402]
[1766739886003,7.3,2966.5,2965.1,0.00800402]
[1766739886202,0.88764548,2966.4,2965.1,0.00800402]
[1766739886399,7.3,2966.5,2965.1,0.00800402]
[1766739886599,0.88771731,2966.4,2965.1,0.00800402]
[1766739886803,7.3,2966.5,2965.1,0.00800402]
[1766739887002,0.88771731,2966.4,2965.1,0.00800402]
[1766739887201,7.3,2966.5,2965.1,0.00800402]
[1766739887407,0.16867,2966.3,2965.1,0.00800402]
[1766739890303,7.47367,2966.3,2965.1,0.00800402]
[1766739891998,8.26831551,2966.3,2965.1,0.00800402]
[1766739893215,0.88910123,2966.2,2965.1,0.00800402]
[1766739893405,8.26831551,2966.3,2965.1,0.00800402]
[1766739893703,0.88910609,2966.2,2965.1,0.00800402]
[1766739893899,8.26831551,2966.3,2965.1,0.00800402]
[1766739894105,0.88910852,2966.2,2965.1,0.00800402]
[1766739894313,8.26831551,2966.3,2965.1,0.00800402]
[1766739894514,0.88981829,2966.2,2965.1,0.00800402]
[1766739894699,8.26831551,2966.3,2965.1,0.00800402]
[1766739894909,0.88981829,2966.2,2965.1,0.00800402]
[1766739895106,8.26831551,2966.3,2965.1,0.00800402]
[1766739895306,0.88982064,2966.2,2965.1,0.00800402]
[1766739895514,8.26831551,2966.3,2965.1,0.00800402]
[1766739895710,0.88982064,2966.2,2965.1,0.00800402]
[1766739896012,8.26831551,2966.3,2965.1,0.00800402]
[1766739896312,0.88982436,2966.2,2965.1,0.00800402]
[1766739896509,8.26831551,2966.3,2965.1,0.00800402]
[1766739896709,0.88982449,2966.2,2965.1,0.00800402]
[1766739896914,8.26831551,2966.3,2965.1,0.00800402]
[1766739897109,0.88982449,2966.2,2965.1,0.00800402]
[1766739897310,8.26831551,2966.3,2965.1,0.00800402]
[1766739897511,0.88982832,2966.2,2965.1,0.00800402]
[1766739897806,8.26831551,2966.3,2965.1,0.00800402]
[1766739898009,0.88982832,2966.2,2965.1,0.00800402]
[1766739898210,8.26831551,2966.3,2965.1,0.00800402]
[1766739898511,0.8898313,2966.2,2965.1,0.00800402]
[1766739898818,8.26831551,2966.3,2965.1,0.00800402]
[1766739899013,0.8898313,2966.2,2965.1,0.00800402]
[1766739899213,8.26831551,2966.3,2965.1,0.00800402]
[1766739899412,0.88983434,2966.2,2965.1,0.00800402]
[1766739899711,8.26831551,2966.3,2965.1,0.00800402]
[1766739899912,0.88983434,2966.2,2965.1,0.00800402]
[1766739900112,8.26831551,2966.3,2965.1,0.00800402]
[1766739900315,0.88982886,2966.2,2965.1,0.00800402]
[1766739900517,8.26831551,2966.3,2965.1,0.00800402]
[1766739900715,0.88982801,2966.2,2965.1,0.00800402]
[1766739901014,8.26831551,2966.3,2965.1,0.00800402]
[1766739901216,0.88982162,2966.2,2965.1,0.00800402]
[1766739901416,8.26831551,2966.3,2965.1,0.00800402]
[1766739901717,0.88982686,2966.2,2965.1,0.00800402]
[1766739901905,8.26831551,2966.3,2965.1,0.00800402]
[1766739902105,0.88982728,2966.2,2965.1,0.00800402]
[1766739902316,8.26831551,2966.3,2965.1,0.00800402]
[1766739902515,0.88987448,2966.2,2965.1,0.00800402]
[1766739902716,8.26831551,2966.3,2965.1,0.00800402]
[1766739902917,0.88987405,2966.2,2965.1,0.00800402]
[1766739903117,8.26831551,2966.3,2965.1,0.00800402]
[1766739903418,0.88987621,2966.2,2965.1,0.00800402]
[1766739903620,8.26831551,2966.3,2965.1,0.00800402]
[1766739903918,0.88987884,2966.2,2965.1,0.00800402]
[1766739904111,8.26831551,2966.3,2965.1,0.00800402]
[1766739904307,0.88987692,2966.2,2965.1,0.00800402]
[1766739904510,8.26831551,2966.3,2965.1,0.00800402]
[1766739904718,0.88988231,2966.2,2965.1,0.00800402]
[1766739904911,8.26831551,2966.3,2965.1,0.00800402]
[1766739905113,0.88988231,2966.2,2965.1,0.00800402]
[1766739905407,8.26831551,2966.3,2965.1,0.00800402]
[1766739905608,0.88988837,2966.2,2965.1,0.00800402]
[1766739905919,8.26831551,2966.3,2965.1,0.00800402]
[1766739906221,0.88988776,2966.2,2965.1,0.00800402]
[1766739906415,8.26831551,2966.3,2965.1,0.00800402]
[1766739906615,0.88989551,2966.2,2965.1,0.00800402]
[1766739906817,8.26831551,2966.3,2965.1,0.00800402]
[1766739907013,0.88989552,2966.2,2965.1,0.00800402]
[1766739907212,8.26831551,2966.3,2965.1,0.00800402]
[1766739907417,0.88991051,2966.2,2965.1,0.00800402]
[1766739907618,8.26831551,2966.3,2965.1,0.00800402]
[1766739907819,8.32791051,2966.2,2965.1,0.00800402]
[1766739908121,7.439,2966.2,2965.1,0.00800402]
[1766739912225,0.89003933,2966.1,2965.1,0.00800402]
[1766739912425,7.439,2966.2,2965.1,0.00800402]
[1766739912626,0.89004407,2966.1,2965.1,0.00800402]
[1766739912824,7.472,2966.1,2965.1,0.00800402]
[1766739919022,0.79464551,2966.2,2965.1,0.00800402]
[1766739919322,0.89026622,2966.1,2965.1,0.80264953]
[1766739919523,2.1792227,2966.8,2965.4,0.79464551]
[1766739919729,8.05220266,2966.7,2965.4,0.79464551]
[1766739919923,8.05220266,2966.7,2965.1,0.00800402]
[1766739919924,0.89020266,2966.6,2966.0,0.79464551]
[1766739920125,7.52448827,2966.9,2965.7,0.79464551]
[1766739927427,8.31913378,2966.9,2965.4,0.79464551]
[1766739928127,0.79464551,2966.6,2965.3,0.16873]
[1766739928528,0.79464551,2966.6,2965.3,0.96337551]
[1766739929636,8.31913378,2966.9,2965.6,0.79464551]
[1766739937344,7.52448827,2966.9,2965.6,0.79464551]
[1766739937747,0.00248827,2966.9,2965.6,0.79464551]
[1766739953957,0.00248827,2966.9,2965.3,0.96286754]
[1766739960463,0.00248827,2966.9,2965.3,0.16873]
[1766739963766,0.00248827,2966.9,2965.1,3.02677162]
[1766739963958,0.8898824,2966.8,2965.1,0.00800402]
[1766739964156,0.8898824,2966.7,2965.1,0.00800402]
[1766739964356,0.17112827,2966.9,2965.1,0.00800402]
[1766739964558,0.88959361,2966.8,2965.1,0.00800402]
[1766739964757,0.17112827,2966.9,2965.1,0.00800402]
[1766739964964,0.88959579,2966.8,2965.1,0.00800402]
[1766739965159,0.17112827,2966.9,2965.1,0.00800402]
[1766739965359,0.88958854,2966.8,2965.1,0.00800402]
[1766739965654,0.17112827,2966.9,2965.1,0.00800402]
[1766739965856,0.88943816,2966.8,2965.1,0.00800402]
[1766739966057,0.17112827,2966.9,2965.1,0.00800402]
[1766739966268,0.88943774,2966.8,2965.1,0.00800402]
[1766739966461,0.17112827,2966.9,2965.1,0.00800402]
[1766739966661,0.88932958,2966.8,2965.1,0.00800402]
[1766739966864,0.17112827,2966.9,2965.1,0.00800402]
[1766739967066,0.88932958,2966.8,2965.1,0.00800402]
[1766739967270,0.17112827,2966.9,2965.1,0.00800402]
[1766739967566,0.88924373,2966.8,2965.1,0.00800402]
[1766739967762,0.17112827,2966.9,2965.1,0.00800402]
[1766739967964,0.88924373,2966.8,2965.1,0.00800402]
[1766739968166,0.17112827,2966.9,2965.1,0.00800402]
[1766739968359,0.88923319,2966.8,2965.1,0.00800402]
[1766739968559,0.17112827,2966.9,2965.1,0.00800402]
[1766739968861,0.88917492,2966.8,2965.1,0.00800402]
[1766739969061,0.17112827,2966.9,2965.1,0.00800402]
[1766739969267,0.88917492,2966.8,2965.1,0.00800402]
[1766739969467,0.17112827,2966.9,2965.1,0.00800402]
[1766739969766,0.88911811,2966.8,2965.1,0.00800402]
[1766739969967,0.17112827,2966.9,2965.1,0.00800402]
[1766739970166,0.88911782,2966.8,2965.1,0.00800402]
[1766739970468,0.17112827,2966.9,2965.1,0.00800402]
[1766739970658,0.88907338,2966.8,2965.1,0.00800402]
[1766739970966,0.17112827,2966.9,2965.1,0.00800402]
[1766739980172,0.16867,2966.4,2965.1,0.00800402]
[1766739980373,0.79413754,2966.3,2965.1,0.00800402]
[1766739980773,0.16867,2966.4,2965.1,0.00800402]
[1766739981574,0.16867,2966.3,2965.1,0.00800402]
[1766739981776,0.16867,2966.3,2964.6,1.44405444]
[1766739982774,0.00503685,2965.7,2965.2,0.00505698]
[1766739983777,0.00503685,2965.7,2964.6,1.44703156]
[1766739984765,0.00503685,2965.7,2964.9,0.00505698]
[1766739996590,3.685e-05,2965.7,2964.9,0.00505698]
[1766740007196,0.16865,2966.8,2964.9,0.79919452]
[1766740007400,0.88982953,2966.7,2964.9,0.79919452]
[1766740007596,0.16865,2966.8,2964.9,0.00505698]
[1766740007803,0.88980103,2966.7,2964.9,0.00505698]
[1766740008001,0.16865,2966.8,2964.9,0.00505698]
[1766740008202,0.00505698,2966.1,2964.9,0.00505698]
[1766740013905,0.00505698,2966.1,2965.1,0.79452411]
[1766740021613,0.00505698,2966.1,2964.9,0.00505698]
[1766740021820,0.79452411,2965.9,2964.9,0.00505698]
[1766740022211,0.00505698,2966.1,2964.9,0.00505698]
[1766740047039,0.5,2966.0,2964.9,0.00505698]
[1766740049936,0.79452411,2965.7,2964.9,0.00505698]
[1766740050642,0.79452411,2965.7,2964.6,0.00297712]
[1766740050847,0.5,2966.0,2964.6,0.00297712]
[1766740050848,0.79452411,2965.4,2964.6,0.00297712]
[1766740051034,0.79452411,2965.4,2964.4,11.76557593]
[1766740051739,0.79452411,2965.4,2964.6,0.00505698]
[1766740051939,0.79452411,2965.4,2964.6,0.00931074]
[1766740052640,0.79452411,2964.7,2963.6,1.49467539]
[1766740052940,0.16872,2965.5,2963.6,1.49480022]
[1766740052941,0.79452411,2965.0,2963.6,1.49480022]
[1766740053533,0.00505698,2964.6,2964.0,0.00505698]
[1766740063949,0.00505698,2964.6,2963.6,0.00315227]
[1766740064641,0.79452411,2964.3,2962.7,0.16888]
[1766740064839,0.79452411,2964.2,2963.2,0.00505698]
[1766740065248,0.79452411,2964.5,2963.2,0.00505698]
[1766740065650,0.79452411,2964.5,2963.2,0.00764324]
[1766740066744,0.79452411,2964.2,2963.2,0.00764324]
[1766740068849,0.16878,2964.5,2963.2,0.00764324]
[1766740070156,0.79452411,2964.4,2963.2,0.00764324]
[1766740070857,0.16878,2964.5,2963.3,0.79452411]
[1766740072552,0.79452411,2964.4,2963.2,0.00764324]
[1766740073964,0.16878,2964.5,2963.2,0.00764324]
[1766740080257,0.00505698,2964.6,2963.3,0.79568283]
[1766740080453,0.00505698,2964.6,2963.3,2.24575366]
[1766740080655,0.00505698,2964.6,2963.3,2.41459366]
[1766740081267,0.00505698,2964.6,2963.3,0.16884]
[1766740083673,0.00505698,2964.6,2963.2,0.00764324]
[1766740086276,0.00505698,2964.6,2963.3,0.79568283]
[1766740087770,0.00505698,2964.6,2963.2,0.00764324]
[1766740119295,0.00505698,2964.6,2963.2,0.17649324]
[1766740120697,0.00244294,2965.0,2963.9,0.79568283]
[1766740120886,0.5,2966.0,2964.3,0.79568283]
[1766740121093,0.89292542,2965.9,2964.3,0.79568283]
[1766740121292,0.89292542,2965.8,2964.0,0.79568283]
[1766740121497,0.5,2966.0,2964.0,0.79568283]
[1766740121696,0.00505698,2965.3,2964.7,0.00505698]
[1766740121897,0.00824063,2965.3,2964.7,0.00505698]
[1766740140114,0.00824063,2965.3,2963.9,0.16881]
[1766740140618,0.00824063,2965.3,2964.2,0.79490355]
[1766740141220,0.00824063,2965.3,2964.5,0.00505698]
[1766740155038,0.00824063,2965.3,2964.1,0.79490355]
[1766740155537,0.00824063,2965.3,2964.3,0.79490355]
[1766740156039,0.00824063,2965.3,2964.5,0.00505698]
[1766740157541,0.5,2965.2,2964.5,0.00505698]
[1766740168654,0.5,2965.0,2964.5,0.00505698]
[1766740171849,0.5,2965.0,2964.7,0.79490355]
[1766740172059,0.16868,2966.2,2964.9,1.5898071]
[1766740172361,1.90077542,2967.0,2965.7,0.79490355]
[1766740172362,0.16865,2966.8,2965.7,0.79490355]
[1766740172562,0.88974728,2966.7,2965.7,0.79490355]
[1766740172858,0.88974728,2966.6,2965.7,0.79490355]
[1766740173161,0.00505698,2966.4,2965.9,0.00505698]
[1766740173662,0.00505698,2966.4,2965.7,0.0030327]
[1766740174661,0.00505698,2966.4,2965.8,0.00505698]
[1766740174862,0.00505698,2966.4,2965.3,1.45300267]
[1766740175763,0.00505698,2966.4,2965.6,0.00337128]
[1766740176463,0.00505698,2966.4,2965.3,1.45700777]
[1766740177564,0.00505698,2966.4,2965.3,0.0040051]
[1766740179566,0.79490355,2966.2,2964.8,0.79490355]
[1766740180572,0.79490355,2966.2,2964.8,0.79821723]
[1766740180865,0.79490355,2966.2,2964.8,0.00331368]
[1766740193883,0.79390355,2966.2,2964.8,0.00331368]
[1766740197987,0.16867,2966.3,2964.8,0.00331368]
[1766740201181,0.88713044,2966.2,2964.8,0.00331368]
[1766740201381,0.16867,2966.3,2964.8,0.00331368]
[1766740201583,0.88713318,2966.2,2964.8,0.00331368]
[1766740201784,0.16867,2966.3,2964.8,0.00331368]
[1766740201983,0.88713318,2966.2,2964.8,0.00331368]
[1766740202187,0.16867,2966.3,2964.8,0.00331368]
[1766740202483,0.88713447,2966.2,2964.8,0.00331368]
[1766740202684,0.16867,2966.3,2964.8,0.00331368]
[1766740202884,0.88584084,2966.2,2964.8,0.00331368]
[1766740203187,0.16867,2966.3,2964.8,0.00331368]
[1766740203489,0.88591361,2966.2,2964.8,0.00331368]
[1766740203684,0.16867,2966.3,2964.8,0.00331368]
[1766740203888,0.88591583,2966.2,2964.8,0.00331368]
[1766740204088,0.16867,2966.3,2964.8,0.00331368]
[1766740204275,0.88599657,2966.2,2964.8,0.00331368]
[1766740204479,0.16867,2966.3,2964.8,0.00331368]
[1766740204674,0.8859942,2966.2,2964.8,0.00331368]
[1766740204888,0.16867,2966.3,2964.8,0.00331368]
[1766740205086,0.8859942,2966.2,2964.8,0.00331368]
[1766740205287,0.16867,2966.3,2964.8,0.00331368]
[1766740205486,0.88603098,2966.2,2964.8,0.00331368]
[1766740205685,0.16867,2966.3,2964.8,0.00331368]
[1766740205886,0.88603055,2966.2,2964.8,0.00331368]
[1766740206186,0.16867,2966.3,2964.8,0.00331368]
[1766740206387,0.8860791,2966.2,2964.8,0.00331368]
[1766740206689,0.16867,2966.3,2964.8,0.00331368]
[1766740206986,0.88607952,2966.2,2964.8,0.00331368]
[1766740207187,0.16867,2966.3,2964.8,0.00331368]
[1766740207387,0.88614141,2966.2,2964.8,0.00331368]
[1766740207587,0.16867,2966.3,2964.8,0.00331368]
[1766740207787,0.88614141,2966.2,2964.8,0.00331368]
[1766740207989,0.16867,2966.3,2964.8,0.00331368]
[1766740208184,0.88614099,2966.2,2964.8,0.00331368]
[1766740208489,0.88614099,2966.1,2964.8,0.00331368]
[1766740208691,0.16867,2966.3,2964.8,0.00331368]
[1766740208891,0.88619424,2966.2,2964.8,0.00331368]
[1766740209092,0.16867,2966.3,2964.8,0.00331368]
[1766740209292,0.886286,2966.2,2964.8,0.00331368]
[1766740209589,0.886286,2966.1,2964.8,0.00331368]
[1766740209791,0.16867,2966.3,2964.8,0.00331368]
[1766740209992,0.88626937,2966.2,2964.8,0.00331368]
[1766740210191,0.88626937,2966.1,2964.8,0.00331368]
[1766740210392,0.16867,2966.3,2964.8,0.00331368]
[1766740210593,0.88632344,2966.2,2964.8,0.00331368]
[1766740210795,0.88632344,2966.1,2964.8,0.00331368]
[1766740210996,0.16867,2966.3,2964.8,0.00331368]
[1766740211195,0.88632344,2966.2,2964.8,0.00331368]
[1766740211387,0.88632344,2966.1,2964.8,0.00331368]
[1766740211584,0.16867,2966.3,2964.8,0.00331368]
[1766740211796,0.88631187,2966.2,2964.8,0.00331368]
[1766740211989,0.88631187,2966.1,2964.8,0.00331368]
[1766740212191,0.16867,2966.3,2964.8,0.00331368]
[1766740212397,0.88630366,2966.2,2964.8,0.00331368]
[1766740212589,0.88630366,2966.1,2964.8,0.00331368]
[1766740212790,0.16867,2966.3,2964.8,0.00331368]
[1766740212987,0.88630323,2966.2,2964.8,0.00331368]
[1766740213187,0.88630323,2966.1,2964.8,0.00331368]
[1766740213393,0.16867,2966.3,2964.8,0.00331368]
[1766740213697,0.88630045,2966.2,2964.8,0.00331368]
[1766740213888,0.16867,2966.3,2964.8,0.00331368]
[1766740214088,0.88629919,2966.2,2964.8,0.00331368]
[1766740214396,0.16867,2966.3,2964.8,0.00331368]
[1766740214587,0.88630433,2966.2,2964.8,0.00331368]
[1766740214784,0.16867,2966.3,2964.8,0.00331368]
[1766740214988,0.88630433,2966.2,2964.8,0.00331368]
[1766740215195,0.88631211,2966.1,2964.8,0.00331368]
[1766740215397,0.16867,2966.3,2964.8,0.00331368]
[1766740215599,0.88631221,2966.2,2964.8,0.00331368]
[1766740215894,0.88631221,2966.1,2964.8,0.00331368]
[1766740216092,0.16867,2966.3,2964.8,0.00331368]
[1766740216293,0.88632092,2966.2,2964.8,0.00331368]
[1766740216493,0.88632092,2966.1,2964.8,0.00331368]
[1766740216694,0.16867,2966.3,2964.8,0.00331368]
[1766740216894,0.88632092,2966.2,2964.8,0.00331368]
[1766740217096,0.88632092,2966.1,2964.8,0.00331368]
[1766740217395,0.16867,2966.3,2964.8,0.00331368]
[1766740217593,0.88633292,2966.2,2964.8,0.00331368]
[1766740217793,0.88633292,2966.1,2964.8,0.00331368]
[1766740217983,0.16867,2966.3,2964.8,0.00331368]
[1766740218184,0.88633291,2966.2,2964.8,0.00331368]
[1766740218388,0.88633291,2966.1,2964.8,0.00331368]
[1766740218596,0.16867,2966.3,2964.8,0.00331368]
[1766740218789,0.88635145,2966.2,2964.8,0.00331368]
[1766740218988,0.88635145,2966.1,2964.8,0.00331368]
[1766740219190,0.16867,2966.3,2964.8,0.00331368]
[1766740219491,0.88637426,2966.2,2964.8,0.00331368]
[1766740219785,0.88637426,2966.1,2964.8,0.00331368]
[1766740219984,0.16867,2966.3,2964.8,0.00331368]
[1766740220192,0.88637468,2966.2,2964.8,0.00331368]
[1766740220391,0.88637468,2966.1,2964.8,0.00331368]
[1766740220593,0.16867,2966.3,2964.8,0.00331368]
[1766740220795,0.88640274,2966.2,2964.8,0.00331368]